[Event "Late-Titled-Tuesday-Blitz-February-13-2024"]
[Site "Chess.com"]
[Date "2024.02.13"]
[Round "10"]
[White "ArtemDyachuk"]
[Black "ProfessorChess101"]
[Result "1-0"]
[WhiteElo "2640"]
[BlackElo "2781"]
[TimeControl "180+1"]
[EndTime "15:55:27 PST"]
[Termination "ArtemDyachuk won by resignation"]

1. c4 {[%clk 0:02:59.6]} 1... e6 {[%clk 0:02:58.6]} 2. Nf3 {[%clk 0:02:59.9]}
2... d5 {[%clk 0:02:59]} 3. g3 {[%clk 0:03:00.5]} 3... Nf6 {[%clk 0:02:55.7]} 4.
Bg2 {[%clk 0:03:01]} 4... a6 {[%clk 0:02:56.3]} 5. O-O {[%clk 0:03:00.5]} 5...
Be7 {[%clk 0:02:54.9]} 6. d4 {[%clk 0:02:58.5]} 6... dxc4 {[%clk 0:02:48.7]} 7.
Ne5 {[%clk 0:02:55.8]} 7... O-O {[%clk 0:02:45.5]} 8. Nxc4 {[%clk 0:02:54.7]}
8... c5 {[%clk 0:02:45.3]} 9. dxc5 {[%clk 0:02:51.4]} 9... Bxc5 {[%clk
0:02:46.2]} 10. Nc3 {[%clk 0:02:41.3]} 10... Nc6 {[%clk 0:02:43.7]} 11. Bf4
{[%clk 0:02:35.4]} 11... Qe7 {[%clk 0:02:27.3]} 12. Rc1 {[%clk 0:02:24.8]} 12...
e5 {[%clk 0:02:08.1]} 13. Bg5 {[%clk 0:02:22.9]} 13... Be6 {[%clk 0:02:08]} 14.
Bxc6 {[%clk 0:02:07.9]} 14... bxc6 {[%clk 0:01:51.9]} 15. Nxe5 {[%clk
0:02:06.7]} 15... Bh3 {[%clk 0:01:47.8]} 16. Nxc6 {[%clk 0:01:58.1]} 16... Qb7
{[%clk 0:01:27]} 17. Nd5 {[%clk 0:01:34.8]} 17... Ne4 {[%clk 0:00:53.2]} 18.
Rxc5 {[%clk 0:00:36.3]} 18... Nxc5 {[%clk 0:00:44.5]} 19. Nde7+ {[%clk
0:00:31.3]} 19... Kh8 {[%clk 0:00:43.6]} 20. Re1 {[%clk 0:00:21.3]} 20... Ne6
{[%clk 0:00:38.8]} 21. Be3 {[%clk 0:00:17]} 21... Qxb2 {[%clk 0:00:30.4]} 22.
Qd5 {[%clk 0:00:16.4]} 22... Rae8 {[%clk 0:00:19.3]} 23. Qh5 {[%clk 0:00:14]}
23... Qc3 {[%clk 0:00:13.3]} 24. Rc1 {[%clk 0:00:13.7]} 24... Qf6 {[%clk
0:00:08.1]} 25. Qxh3 {[%clk 0:00:10.3]} 25... Rxe7 {[%clk 0:00:08.3]} 26. Nxe7
{[%clk 0:00:10.9]} 26... Qxe7 {[%clk 0:00:09.2]} 27. Qf5 {[%clk 0:00:10.8]}
27... h6 {[%clk 0:00:08.2]} 28. Qe5 {[%clk 0:00:09.8]} 28... Kh7 {[%clk
0:00:06.8]} 29. Bc5 {[%clk 0:00:06.7]} 29... Qd8 {[%clk 0:00:02.4]} 30. Bxf8
{[%clk 0:00:06.4]} 30... Qxf8 {[%clk 0:00:03.3]} 31. Qe4+ {[%clk 0:00:06.7]}
31... g6 {[%clk 0:00:02.4]} 32. Qe3 {[%clk 0:00:07.6]} 32... Qb4 {[%clk
0:00:02.3]} 33. Rc7 {[%clk 0:00:06.7]} 33... Kg8 {[%clk 0:00:02]} 34. h4 {[%clk
0:00:02.9]} 34... Qb1+ {[%clk 0:00:01.6]} 35. Kg2 {[%clk 0:00:02.5]} 35... Qb8
{[%clk 0:00:02.5]} 36. Rc6 {[%clk 0:00:01.9]} 36... Qb7 {[%clk 0:00:02.9]} 37.
Qe4 {[%clk 0:00:02.4]} 37... Kh7 {[%clk 0:00:02]} 38. Rxe6 {[%clk 0:00:02]}
38... Qd7 {[%clk 0:00:02.5]} 39. Re7 {[%clk 0:00:02.2]} 39... Qd8 {[%clk
0:00:03.3]} 40. Rxf7+ {[%clk 0:00:02.5]} 40... Kh8 {[%clk 0:00:04.2]} 41. Qxg6
{[%clk 0:00:02.8]} 41... Qd5+ {[%clk 0:00:04.8]} 42. e4 {[%clk 0:00:03.1]} 42...
Qxf7 {[%clk 0:00:03.3]} 43. Qxf7 {[%clk 0:00:03.7]} 1-0

[Event "Late-Titled-Tuesday-Blitz-February-13-2024"]
[Site "Chess.com"]
[Date "2024.02.13"]
[Round "10"]
[White "Cambek64"]
[Black "Inepton_Fermion"]
[Result "0-1"]
[WhiteElo "2493"]
[BlackElo "2391"]
[TimeControl "180+1"]
[EndTime "15:55:31 PST"]
[Termination "Inepton_Fermion won on time"]

1. e4 {[%clk 0:02:52.1]} 1... c5 {[%clk 0:02:59.5]} 2. Nf3 {[%clk 0:02:50.2]}
2... e6 {[%clk 0:02:59.2]} 3. c4 {[%clk 0:02:48.4]} 3... Nc6 {[%clk 0:02:59.4]}
4. d4 {[%clk 0:02:45.8]} 4... cxd4 {[%clk 0:03:00.3]} 5. Nxd4 {[%clk 0:02:46.1]}
5... Nf6 {[%clk 0:03:00.9]} 6. Nc3 {[%clk 0:02:46.2]} 6... Bb4 {[%clk
0:03:01.5]} 7. Nxc6 {[%clk 0:02:46.4]} 7... bxc6 {[%clk 0:03:02.4]} 8. Bd3
{[%clk 0:02:45]} 8... e5 {[%clk 0:02:59.3]} 9. O-O {[%clk 0:02:44.3]} 9... O-O
{[%clk 0:02:59.4]} 10. Bg5 {[%clk 0:02:39.9]} 10... Be7 {[%clk 0:02:52.5]} 11.
Kh1 {[%clk 0:02:37.2]} 11... d6 {[%clk 0:02:49.8]} 12. f4 {[%clk 0:02:35.8]}
12... exf4 {[%clk 0:02:50.2]} 13. Rxf4 {[%clk 0:02:34.8]} 13... h6 {[%clk
0:02:43.3]} 14. Bxf6 {[%clk 0:02:32.4]} 14... Bxf6 {[%clk 0:02:44.2]} 15. Qc2
{[%clk 0:02:31.9]} 15... Be5 {[%clk 0:02:42.6]} 16. g3 {[%clk 0:02:13]} 16...
Bxf4 {[%clk 0:02:28.4]} 17. gxf4 {[%clk 0:02:13.3]} 17... Qf6 {[%clk 0:02:29.3]}
18. Rf1 {[%clk 0:02:09.5]} 18... Bh3 {[%clk 0:02:21.6]} 19. Rf3 {[%clk
0:01:56.5]} 19... Bg4 {[%clk 0:02:18.6]} 20. Rf2 {[%clk 0:01:57]} 20... Qd4
{[%clk 0:02:13.3]} 21. Qd2 {[%clk 0:01:16.1]} 21... Rae8 {[%clk 0:01:48.9]} 22.
Kg2 {[%clk 0:01:10.8]} 22... Qf6 {[%clk 0:01:24.9]} 23. h3 {[%clk 0:01:08.7]}
23... Bd7 {[%clk 0:01:17.9]} 24. Qe3 {[%clk 0:01:06.1]} 24... Qg6+ {[%clk
0:01:10]} 25. Kh2 {[%clk 0:01:04.6]} 25... f5 {[%clk 0:01:10.6]} 26. Rg2 {[%clk
0:01:03.6]} 26... Qf7 {[%clk 0:01:02]} 27. e5 {[%clk 0:00:29.8]} 27... dxe5
{[%clk 0:00:56.5]} 28. fxe5 {[%clk 0:00:30.2]} 28... f4 {[%clk 0:00:52.9]} 29.
Qd4 {[%clk 0:00:16.7]} 29... f3 {[%clk 0:00:38.9]} 30. Bg6 {[%clk 0:00:17]}
30... Qf4+ {[%clk 0:00:31]} 31. Qxf4 {[%clk 0:00:16.4]} 31... Rxf4 {[%clk
0:00:31.9]} 32. Bxe8 {[%clk 0:00:16.2]} 32... Bxe8 {[%clk 0:00:16.6]} 33. Rf2
{[%clk 0:00:14.3]} 33... Bh5 {[%clk 0:00:14]} 34. b3 {[%clk 0:00:13]} 34... Kf7
{[%clk 0:00:09.7]} 35. Kg3 {[%clk 0:00:13.5]} 35... g5 {[%clk 0:00:09.6]} 36.
Na4 {[%clk 0:00:10.5]} 36... Ke6 {[%clk 0:00:04.4]} 37. Nc5+ {[%clk 0:00:10.8]}
37... Kxe5 {[%clk 0:00:05]} 38. Nd3+ {[%clk 0:00:11.3]} 38... Ke4 {[%clk
0:00:05.7]} 39. Nxf4 {[%clk 0:00:11.6]} 39... gxf4+ {[%clk 0:00:06.6]} 40. Kh4
{[%clk 0:00:11.2]} 40... Ke3 {[%clk 0:00:04]} 41. Rf1 {[%clk 0:00:04.1]} 41...
Bg6 {[%clk 0:00:03.7]} 42. Kg4 {[%clk 0:00:03.2]} 42... h5+ {[%clk 0:00:03.7]}
43. Kg5 {[%clk 0:00:02.8]} 43... Bd3 {[%clk 0:00:03.6]} 0-1

[Event "Late-Titled-Tuesday-Blitz-February-13-2024"]
[Site "Chess.com"]
[Date "2024.02.13"]
[Round "10"]
[White "AlexeiShirov"]
[Black "ChessSkool"]
[Result "0-1"]
[WhiteElo "2847"]
[BlackElo "2739"]
[TimeControl "180+1"]
[EndTime "15:55:32 PST"]
[Termination "ChessSkool won on time"]

1. e4 {[%clk 0:02:58.4]} 1... c6 {[%clk 0:03:00.3]} 2. d4 {[%clk 0:02:57.5]}
2... d5 {[%clk 0:03:01.2]} 3. e5 {[%clk 0:02:57.9]} 3... Bf5 {[%clk 0:03:01.3]}
4. h4 {[%clk 0:02:56.4]} 4... h5 {[%clk 0:03:01.3]} 5. Bd3 {[%clk 0:02:56.2]}
5... Bxd3 {[%clk 0:03:01.6]} 6. Qxd3 {[%clk 0:02:56.2]} 6... Qa5+ {[%clk
0:03:01.7]} 7. Nd2 {[%clk 0:02:54.4]} 7... e6 {[%clk 0:02:57.6]} 8. Nf3 {[%clk
0:02:53.9]} 8... Nh6 {[%clk 0:02:58.2]} 9. O-O {[%clk 0:02:53.9]} 9... Nf5
{[%clk 0:02:58.9]} 10. Nb3 {[%clk 0:02:53.5]} 10... Qa6 {[%clk 0:02:57.6]} 11.
Qd1 {[%clk 0:02:52.7]} 11... Nd7 {[%clk 0:02:51.9]} 12. a4 {[%clk 0:02:48.9]}
12... Rc8 {[%clk 0:02:25.4]} 13. Bg5 {[%clk 0:02:42.7]} 13... c5 {[%clk
0:02:15.5]} 14. Re1 {[%clk 0:02:41.5]} 14... Qc4 {[%clk 0:01:25.8]} 15. Nbd2
{[%clk 0:02:39.6]} 15... Qb4 {[%clk 0:01:24.7]} 16. c3 {[%clk 0:02:32.7]} 16...
Qxb2 {[%clk 0:01:17.7]} 17. Rb1 {[%clk 0:02:32.8]} 17... Qxc3 {[%clk 0:01:17.9]}
18. Rxb7 {[%clk 0:02:33.4]} 18... cxd4 {[%clk 0:01:14.3]} 19. Qb1 {[%clk
0:02:26.6]} 19... Qc6 {[%clk 0:00:53.3]} 20. Nf1 {[%clk 0:02:08.4]} 20... Bc5
{[%clk 0:00:51.5]} 21. Rc1 {[%clk 0:01:51]} 21... Nb6 {[%clk 0:00:30.8]} 22.
Rxa7 {[%clk 0:01:10.1]} 22... Nc4 {[%clk 0:00:30.9]} 23. Rb7 {[%clk 0:01:09.2]}
23... O-O {[%clk 0:00:30.4]} 24. Ng3 {[%clk 0:01:07.7]} 24... Nxg3 {[%clk
0:00:29]} 25. fxg3 {[%clk 0:01:06.9]} 25... d3+ {[%clk 0:00:29]} 26. Kh2 {[%clk
0:01:06.3]} 26... Bb6 {[%clk 0:00:15.4]} 27. Rxc4 {[%clk 0:01:03.5]} 27... dxc4
{[%clk 0:00:14.8]} 28. Rxb6 {[%clk 0:01:02.8]} 28... Qe4 {[%clk 0:00:13]} 29.
Rb4 {[%clk 0:00:59.7]} 29... Qd5 {[%clk 0:00:09.6]} 30. Be3 {[%clk 0:00:51.2]}
30... Rfd8 {[%clk 0:00:08.1]} 31. Bg5 {[%clk 0:00:35.3]} 31... Rd7 {[%clk
0:00:07.8]} 32. Rb8 {[%clk 0:00:31.6]} 32... Qc6 {[%clk 0:00:07.1]} 33. Rb6
{[%clk 0:00:27.3]} 33... Qc5 {[%clk 0:00:05]} 34. Rb5 {[%clk 0:00:24.6]} 34...
Qc7 {[%clk 0:00:03.3]} 35. Be3 {[%clk 0:00:15.4]} 35... c3 {[%clk 0:00:03.7]}
36. Rc5 {[%clk 0:00:15]} 36... Qd8 {[%clk 0:00:04.3]} 37. Qb5 {[%clk 0:00:13.5]}
37... c2 {[%clk 0:00:03.5]} 38. Qc4 {[%clk 0:00:11.3]} 38... Rxc5 {[%clk
0:00:03.6]} 39. Qxc5 {[%clk 0:00:09.6]} 39... d2 {[%clk 0:00:02.9]} 40. Bxd2
{[%clk 0:00:08.1]} 40... Rxd2 {[%clk 0:00:03.8]} 41. Nxd2 {[%clk 0:00:07.1]}
41... Qxd2 {[%clk 0:00:04.7]} 42. Qc8+ {[%clk 0:00:04]} 42... Kh7 {[%clk
0:00:05.1]} 43. Qf8 {[%clk 0:00:02.9]} 43... c1=Q {[%clk 0:00:05.1]} 44. Qxf7
{[%clk 0:00:03.2]} 44... Qh6 {[%clk 0:00:02.4]} 45. Qf3 {[%clk 0:00:02.7]} 45...
Qg6 {[%clk 0:00:02.5]} 46. a5 {[%clk 0:00:01.9]} 46... Qc4 {[%clk 0:00:03]} 0-1

[Event "Late-Titled-Tuesday-Blitz-February-13-2024"]
[Site "Chess.com"]
[Date "2024.02.13"]
[Round "10"]
[White "Kostukov_Alex"]
[Black "Bilan_Danila"]
[Result "0-1"]
[WhiteElo "2327"]
[BlackElo "2544"]
[TimeControl "180+1"]
[EndTime "15:55:33 PST"]
[Termination "Bilan_Danila won on time"]

1. g3 {[%clk 0:03:00.9]} 1... d5 {[%clk 0:03:00.1]} 2. Bg2 {[%clk 0:03:01.3]}
2... Nf6 {[%clk 0:03:01]} 3. d3 {[%clk 0:03:01.6]} 3... c5 {[%clk 0:03:01.6]} 4.
e4 {[%clk 0:03:01.8]} 4... Nc6 {[%clk 0:02:59.6]} 5. exd5 {[%clk 0:03:00.1]}
5... Nxd5 {[%clk 0:03:00.5]} 6. Ne2 {[%clk 0:03:00.5]} 6... Bg4 {[%clk
0:02:59.3]} 7. Nbc3 {[%clk 0:03:01.4]} 7... e6 {[%clk 0:02:55.9]} 8. O-O {[%clk
0:02:59.5]} 8... Nxc3 {[%clk 0:02:54.6]} 9. bxc3 {[%clk 0:02:59.1]} 9... Be7
{[%clk 0:02:55.3]} 10. Rb1 {[%clk 0:02:59.3]} 10... Qd7 {[%clk 0:02:44.4]} 11.
Be3 {[%clk 0:02:56.3]} 11... Rc8 {[%clk 0:02:37.7]} 12. Qd2 {[%clk 0:02:56.2]}
12... b6 {[%clk 0:02:32.1]} 13. c4 {[%clk 0:02:55.9]} 13... Bf6 {[%clk
0:02:31.6]} 14. Nc3 {[%clk 0:02:50.7]} 14... Nd4 {[%clk 0:02:20.8]} 15. f3
{[%clk 0:02:25.4]} 15... Bh5 {[%clk 0:01:59.7]} 16. Ne4 {[%clk 0:02:23.6]} 16...
Be7 {[%clk 0:01:55.1]} 17. g4 {[%clk 0:01:54.8]} 17... Bg6 {[%clk 0:01:54.4]}
18. f4 {[%clk 0:01:55.2]} 18... O-O {[%clk 0:01:46]} 19. Kh1 {[%clk 0:01:53.9]}
19... f5 {[%clk 0:01:22.7]} 20. Nf2 {[%clk 0:01:44.6]} 20... Qd6 {[%clk
0:01:15.7]} 21. g5 {[%clk 0:01:39.3]} 21... Bh5 {[%clk 0:01:13.9]} 22. Bxd4
{[%clk 0:01:31.7]} 22... Qxd4 {[%clk 0:01:08.4]} 23. Rbe1 {[%clk 0:01:31.8]}
23... Bd6 {[%clk 0:01:02.5]} 24. Nh3 {[%clk 0:01:07.8]} 24... Bb8 {[%clk
0:00:52.2]} 25. Rxe6 {[%clk 0:01:02.6]} 25... Bf7 {[%clk 0:00:42.6]} 26. Re2
{[%clk 0:00:57.7]} 26... a6 {[%clk 0:00:34.3]} 27. a4 {[%clk 0:00:50.4]} 27...
a5 {[%clk 0:00:28.9]} 28. Rfe1 {[%clk 0:00:48.5]} 28... Bh5 {[%clk 0:00:26.8]}
29. Bd5+ {[%clk 0:00:36.4]} 29... Kh8 {[%clk 0:00:26]} 30. Re7 {[%clk
0:00:36.2]} 30... Bg4 {[%clk 0:00:24.9]} 31. c3 {[%clk 0:00:28.2]} 31... Bf3+
{[%clk 0:00:07.6]} 32. Bxf3 {[%clk 0:00:26.6]} 32... Qd6 {[%clk 0:00:08.1]} 33.
Bd5 {[%clk 0:00:25.1]} 33... Qg6 {[%clk 0:00:06.4]} 34. Qe2 {[%clk 0:00:20.9]}
34... Bc7 {[%clk 0:00:02.5]} 35. Kg2 {[%clk 0:00:16.5]} 35... Bb8 {[%clk
0:00:02.8]} 36. Re6 {[%clk 0:00:15.4]} 36... Qf7 {[%clk 0:00:02.2]} 37. Re7
{[%clk 0:00:08.3]} 37... Qg6 {[%clk 0:00:01.9]} 38. Qf3 {[%clk 0:00:07.2]} 38...
Bc7 {[%clk 0:00:02]} 39. R1e6 {[%clk 0:00:06.9]} 39... Qxe6 {[%clk 0:00:01.1]}
40. Bxe6 {[%clk 0:00:06.5]} 40... Bd8 {[%clk 0:00:02]} 41. Rd7 {[%clk
0:00:02.7]} 41... Rb8 {[%clk 0:00:02.4]} 42. Qd5 {[%clk 0:00:02.3]} 42... Re8
{[%clk 0:00:02.8]} 43. Kf3 {[%clk 0:00:02.3]} 43... Be7 {[%clk 0:00:02.8]} 44.
Bxf5 {[%clk 0:00:02.1]} 44... Bf8 {[%clk 0:00:03.7]} 45. Be6 {[%clk 0:00:01.9]}
45... b5 {[%clk 0:00:04.6]} 46. cxb5 {[%clk 0:00:01.1]} 46... Be7 {[%clk
0:00:05.5]} 0-1

[Event "Late-Titled-Tuesday-Blitz-February-13-2024"]
[Site "Chess.com"]
[Date "2024.02.13"]
[Round "10"]
[White "RandomNoob04"]
[Black "saikrishnaReturns"]
[Result "1/2-1/2"]
[WhiteElo "2620"]
[BlackElo "2780"]
[TimeControl "180+1"]
[EndTime "15:55:35 PST"]
[Termination "Game drawn by stalemate"]

1. e4 {[%clk 0:03:00.9]} 1... c5 {[%clk 0:02:58.3]} 2. d4 {[%clk 0:03:01.4]}
2... cxd4 {[%clk 0:02:58.6]} 3. c3 {[%clk 0:03:02.2]} 3... d3 {[%clk 0:02:58.6]}
4. Bxd3 {[%clk 0:03:02.1]} 4... g6 {[%clk 0:02:58.9]} 5. Nf3 {[%clk 0:03:02.5]}
5... Bg7 {[%clk 0:02:59.8]} 6. O-O {[%clk 0:03:02.8]} 6... Nc6 {[%clk 0:03:00]}
7. c4 {[%clk 0:03:02.5]} 7... Nf6 {[%clk 0:03:00.3]} 8. h3 {[%clk 0:03:00.8]}
8... O-O {[%clk 0:02:59.7]} 9. e5 {[%clk 0:02:56]} 9... Ne8 {[%clk 0:03:00]} 10.
Re1 {[%clk 0:02:56.3]} 10... d6 {[%clk 0:03:00.4]} 11. exd6 {[%clk 0:02:55.5]}
11... Nxd6 {[%clk 0:03:00.5]} 12. Nc3 {[%clk 0:02:55.2]} 12... e5 {[%clk
0:02:53.3]} 13. Bg5 {[%clk 0:02:51.9]} 13... f6 {[%clk 0:02:53.2]} 14. Be3
{[%clk 0:02:41.5]} 14... Nf5 {[%clk 0:02:52]} 15. Bc5 {[%clk 0:02:38.4]} 15...
Re8 {[%clk 0:02:49.4]} 16. Nd5 {[%clk 0:02:37.7]} 16... b6 {[%clk 0:02:44.1]}
17. Ba3 {[%clk 0:02:32.1]} 17... Nfd4 {[%clk 0:02:42.6]} 18. Nxd4 {[%clk
0:02:27.2]} 18... Nxd4 {[%clk 0:02:43.5]} 19. Be4 {[%clk 0:02:26.9]} 19... Bb7
{[%clk 0:02:42.1]} 20. Nxf6+ {[%clk 0:02:24.1]} 20... Qxf6 {[%clk 0:02:37.8]}
21. Bxb7 {[%clk 0:02:25]} 21... Rad8 {[%clk 0:02:38]} 22. Bd5+ {[%clk
0:02:23.7]} 22... Kh8 {[%clk 0:02:37.6]} 23. Qd3 {[%clk 0:02:15.6]} 23... Bf8
{[%clk 0:02:34.1]} 24. Bxf8 {[%clk 0:02:00.4]} 24... Rxf8 {[%clk 0:02:35]} 25.
Rf1 {[%clk 0:01:52.8]} 25... b5 {[%clk 0:02:29.4]} 26. b3 {[%clk 0:01:52]} 26...
Rd6 {[%clk 0:02:20.7]} 27. Qe4 {[%clk 0:01:47.6]} 27... bxc4 {[%clk 0:02:08.2]}
28. bxc4 {[%clk 0:01:48.5]} 28... Qg5 {[%clk 0:02:04.1]} 29. f4 {[%clk
0:01:41.7]} 29... Rxf4 {[%clk 0:01:59.4]} 30. Rxf4 {[%clk 0:01:38.5]} 30... Qxf4
{[%clk 0:01:58]} 31. Qxf4 {[%clk 0:01:29.2]} 31... Ne2+ {[%clk 0:01:57.8]} 32.
Kf2 {[%clk 0:01:26.2]} 32... Nxf4 {[%clk 0:01:58.7]} 33. Rd1 {[%clk 0:01:25.2]}
33... Kg7 {[%clk 0:01:53.7]} 34. Ke3 {[%clk 0:01:21.6]} 34... Nxg2+ {[%clk
0:01:39.5]} 35. Ke4 {[%clk 0:01:22]} 35... Kf6 {[%clk 0:01:39.9]} 36. c5 {[%clk
0:01:18.5]} 36... Rd8 {[%clk 0:01:30]} 37. c6 {[%clk 0:01:10.4]} 37... Nf4
{[%clk 0:01:29.9]} 38. c7 {[%clk 0:01:06.3]} 38... Rc8 {[%clk 0:01:21]} 39. Rc1
{[%clk 0:01:06.8]} 39... Ne6 {[%clk 0:00:35.9]} 40. Rc6 {[%clk 0:01:07]} 40...
Rxc7 {[%clk 0:00:36.2]} 41. Rxe6+ {[%clk 0:01:07.7]} 41... Kg5 {[%clk
0:00:35.3]} 42. Kxe5 {[%clk 0:01:04.1]} 42... Kh4 {[%clk 0:00:31.4]} 43. Kd6
{[%clk 0:01:04.3]} 43... Rg7 {[%clk 0:00:27.9]} 44. Re7 {[%clk 0:00:51.3]} 44...
Rxe7 {[%clk 0:00:27.3]} 45. Kxe7 {[%clk 0:00:52.2]} 45... Kxh3 {[%clk
0:00:27.7]} 46. Kf6 {[%clk 0:00:52.7]} 46... Kh4 {[%clk 0:00:23.4]} 47. Kg7
{[%clk 0:00:49.3]} 47... g5 {[%clk 0:00:18.1]} 48. Kxh7 {[%clk 0:00:24.3]} 48...
g4 {[%clk 0:00:18.3]} 49. Kg6 {[%clk 0:00:25.1]} 49... g3 {[%clk 0:00:18.8]} 50.
Kf5 {[%clk 0:00:25.8]} 50... Kh3 {[%clk 0:00:18.5]} 51. Ke5 {[%clk 0:00:14.2]}
51... g2 {[%clk 0:00:18.9]} 52. Bxg2+ {[%clk 0:00:14.9]} 52... Kxg2 {[%clk
0:00:19.4]} 53. Kd5 {[%clk 0:00:15.1]} 53... Kf3 {[%clk 0:00:19.9]} 54. a4
{[%clk 0:00:14.4]} 54... Kf4 {[%clk 0:00:19.6]} 55. a5 {[%clk 0:00:13.3]} 55...
Kf5 {[%clk 0:00:18.6]} 56. a6 {[%clk 0:00:10.5]} 56... Kf6 {[%clk 0:00:18.8]}
57. Kc6 {[%clk 0:00:11.1]} 57... Ke7 {[%clk 0:00:19.4]} 58. Kb7 {[%clk
0:00:11.8]} 58... Kd8 {[%clk 0:00:19.8]} 59. Kxa7 {[%clk 0:00:12.7]} 59... Kc7
{[%clk 0:00:20.4]} 60. Ka8 {[%clk 0:00:13]} 60... Kc8 {[%clk 0:00:21.1]} 61. Ka7
{[%clk 0:00:13.2]} 61... Kc7 {[%clk 0:00:22]} 62. Ka8 {[%clk 0:00:14.1]} 62...
Kc8 {[%clk 0:00:22.5]} 63. a7 {[%clk 0:00:15]} 63... Kc7 {[%clk 0:00:23.1]}
1/2-1/2

[Event "Late-Titled-Tuesday-Blitz-February-13-2024"]
[Site "Chess.com"]
[Date "2024.02.13"]
[Round "10"]
[White "Canal_Showdrez"]
[Black "effefe"]
[Result "1-0"]
[WhiteElo "2094"]
[BlackElo "2268"]
[TimeControl "180+1"]
[EndTime "15:55:37 PST"]
[Termination "Canal_Showdrez won on time"]

1. d4 {[%clk 0:03:00.9]} 1... Nf6 {[%clk 0:02:57.8]} 2. Nf3 {[%clk 0:02:58.6]}
2... g6 {[%clk 0:02:58.3]} 3. e3 {[%clk 0:02:58]} 3... Bg7 {[%clk 0:02:58.7]} 4.
Bd3 {[%clk 0:02:58.4]} 4... O-O {[%clk 0:02:59.3]} 5. Nbd2 {[%clk 0:02:58.9]}
5... d6 {[%clk 0:03:00]} 6. b3 {[%clk 0:02:59.5]} 6... Nc6 {[%clk 0:03:00.8]} 7.
Bb2 {[%clk 0:03:00]} 7... Nd7 {[%clk 0:03:01.5]} 8. a3 {[%clk 0:03:00.2]} 8...
e5 {[%clk 0:03:02.3]} 9. O-O {[%clk 0:02:59.5]} 9... f5 {[%clk 0:03:02.7]} 10.
Bc4+ {[%clk 0:02:58.5]} 10... Kh8 {[%clk 0:03:00]} 11. Ng5 {[%clk 0:02:58.6]}
11... Qxg5 {[%clk 0:02:59.6]} 12. dxe5 {[%clk 0:02:58.7]} 12... Ndxe5 {[%clk
0:02:59.1]} 13. f4 {[%clk 0:02:58.1]} 13... Qh6 {[%clk 0:02:49.4]} 14. fxe5
{[%clk 0:02:57.8]} 14... Qxe3+ {[%clk 0:02:49.7]} 15. Kh1 {[%clk 0:02:55.6]}
15... Nxe5 {[%clk 0:02:48.2]} 16. Nf3 {[%clk 0:02:50.4]} 16... Nxc4 {[%clk
0:02:39.1]} 17. Bxg7+ {[%clk 0:02:46.9]} 17... Kxg7 {[%clk 0:02:40]} 18. bxc4
{[%clk 0:02:46.2]} 18... Qc3 {[%clk 0:02:08.8]} 19. Qd5 {[%clk 0:02:31.7]} 19...
Qf6 {[%clk 0:01:40.8]} 20. Rae1 {[%clk 0:02:26.9]} 20... c6 {[%clk 0:01:36.5]}
21. Qd2 {[%clk 0:02:17.1]} 21... Bd7 {[%clk 0:01:23.8]} 22. Re2 {[%clk
0:02:10.1]} 22... Rae8 {[%clk 0:01:18.6]} 23. Rfe1 {[%clk 0:02:10]} 23... Rxe2
{[%clk 0:01:17.5]} 24. Rxe2 {[%clk 0:02:10.9]} 24... Re8 {[%clk 0:01:17.1]} 25.
Rxe8 {[%clk 0:02:05.6]} 25... Bxe8 {[%clk 0:01:18]} 26. h4 {[%clk 0:02:05.1]}
26... Bf7 {[%clk 0:01:16.7]} 27. Qb4 {[%clk 0:01:56.5]} 27... b6 {[%clk
0:01:12.7]} 28. a4 {[%clk 0:01:51.7]} 28... d5 {[%clk 0:01:02.9]} 29. cxd5
{[%clk 0:01:36.6]} 29... Bxd5 {[%clk 0:01:03.8]} 30. Ng5 {[%clk 0:01:19.6]}
30... Qa1+ {[%clk 0:00:58]} 31. Kh2 {[%clk 0:01:19.2]} 31... Qe5+ {[%clk
0:00:57.9]} 32. Kg1 {[%clk 0:01:14.7]} 32... Qe2 {[%clk 0:00:53.9]} 33. Qc3+
{[%clk 0:00:42.8]} 33... Kh6 {[%clk 0:00:39.6]} 34. Nf3 {[%clk 0:00:42.9]} 34...
Bxf3 {[%clk 0:00:37.2]} 35. gxf3 {[%clk 0:00:43.8]} 35... c5 {[%clk 0:00:30.2]}
36. Qf6 {[%clk 0:00:37]} 36... Qe3+ {[%clk 0:00:17.8]} 37. Kg2 {[%clk
0:00:35.7]} 37... Qd2+ {[%clk 0:00:12.6]} 38. Kg3 {[%clk 0:00:34.2]} 38... Qd7
{[%clk 0:00:05.8]} 39. Qg5+ {[%clk 0:00:32]} 39... Kg7 {[%clk 0:00:05.8]} 40. h5
{[%clk 0:00:32.4]} 40... Qc7+ {[%clk 0:00:05.4]} 41. f4 {[%clk 0:00:31.2]} 41...
Qf7 {[%clk 0:00:04.2]} 42. h6+ {[%clk 0:00:30.6]} 42... Kg8 {[%clk 0:00:04.8]}
43. Qd8+ {[%clk 0:00:30.3]} 43... Qf8 {[%clk 0:00:05.4]} 44. Qd5+ {[%clk
0:00:30.3]} 44... Qf7 {[%clk 0:00:04.1]} 45. Qa8+ {[%clk 0:00:30.3]} 45... Qf8
{[%clk 0:00:04.2]} 46. Qxa7 {[%clk 0:00:30.2]} 46... Qxh6 {[%clk 0:00:02.1]} 47.
Qxb6 {[%clk 0:00:25.3]} 47... Qf8 {[%clk 0:00:02.4]} 48. a5 {[%clk 0:00:19.9]}
48... Qe7 {[%clk 0:00:01.2]} 49. Qb8+ {[%clk 0:00:15.1]} 49... Kg7 {[%clk
0:00:01]} 50. Qe5+ {[%clk 0:00:16]} 50... Qxe5 {[%clk 0:00:01.2]} 51. fxe5
{[%clk 0:00:16.2]} 1-0